fUSD/lending_fUSD_20240126
["ID","MTS","AMOUNT","RATE_DAILY","PERIOD"]
[312828128,1706308243492,-5825.81690771,0.00034148,2]
[312828129,1706308243501,-288.89,0.00034151,2]
[312828130,1706308243511,-151.0127,0.00034448,6]
[312828131,1706308243521,-492.9,0.00034457,2]
[312828132,1706308243530,-800.0,0.00034719,5]
[312828133,1706308243541,-151.0127,0.00034748,6]
[312828134,1706308243551,-500.0,0.00034825,2]
[312828135,1706308243562,-500.0,0.00034825,2]
[312828136,1706308243571,-500.0,0.00034825,2]
[312828137,1706308243581,-500.0,0.00034825,2]
[312828138,1706308243590,-500.0,0.00034825,2]
[312828139,1706308243599,-500.0,0.00034825,2]
[312828140,1706308243609,-500.0,0.00034825,2]
[312828141,1706308243618,-153.64564505,0.00034899,2]
[312828142,1706308243628,-516.71825044,0.000349,2]
[312828143,1706308243638,-516.7182504,0.000349,2]
[312828144,1706308243647,-516.7182504,0.000349,2]
[312828145,1706308243657,-1813.68084069,0.00034997,4]
[312828146,1706308243666,-181.76548125,0.00034998,4]
[312828147,1706308243676,-381.59622964,0.00034999,4]
[312828148,1706308243686,-150.01,0.00034999,2]
[312828149,1706308243697,-977.20860711,0.00034999,2]
[312828150,1706308243708,-151.0,0.00034999,7]
[312828151,1706308243718,-151.0,0.00034999,7]
[312828152,1706308243727,-151.0,0.00034999,7]
[312828153,1706308243737,-1972.82043966,0.00035,2]
[312828154,1706308243746,-155.0,0.00035,2]
[312828155,1706308243756,-175.81144393,0.00035,2]
[312828156,1706308243765,-500.0,0.00035,2]
[312828157,1706308243775,-3424.51949567,0.00035,5]
[312828158,1706308243785,-155.0,0.00035,4]
[312828159,1706308243795,-448.45815072,0.00035,4]
[312828160,1706308243804,-1261.11643049,0.00035,4]
[312828161,1706308243814,-3000.0,0.00035,2]
[312828162,1706308243823,-909.916142,0.00035,7]
[312828163,1706308243833,-909.916142,0.00035,7]
[312828164,1706308243842,-151.0,0.00035,7]
[312828165,1706308243852,-200.82395,0.00035,7]
[312828166,1706308243862,-151.0,0.00035,7]
[312828167,1706308243871,-155.0,0.00035,2]
[312828168,1706308243881,-500.0,0.00035,2]
[312828169,1706308243890,-176.58,0.00035,2]
[312828170,1706308243900,-5552.52897729,0.00035,2]
[312828171,1706308243910,-3999.99798393,0.00035,2]
[312828172,1706308243919,-151.0,0.00035162,7]
[312828173,1706308243929,-151.0127,0.00035198,8]
[312828174,1706308243938,-516.7182504,0.00035379,2]
[312828175,1706308243948,-935.05298078,0.00035485,7]
[312828176,1706308243957,-151.0127,0.00035498,8]
[312828177,1706308243967,-176.58,0.00035548,2]
[312828178,1706308243977,-202.76099161,0.00035698,4]
[312828179,1706308243986,-265.75241527,0.00035698,4]
[312828180,1706308243996,-1060.55480173,0.00035698,2]
[312828181,1706308244006,-155.0,0.00035698,4]
[312828182,1706308244016,-523.73781275,0.00035698,4]
[312828183,1706308244026,-155.0,0.00035698,4]
[312828184,1706308244035,-1319.14648557,0.00035699,4]
[312828185,1706308244171,-18961.23681218,0.000357,2]
[312828186,1706308244182,-151.0,0.000357,7]
[312828187,1706308244191,-164.034563,0.000357,7]
[312828188,1706308244200,-151.0,0.000357,7]
[312828189,1706308244210,-151.0,0.000357,7]
[312828190,1706308244219,-151.0127,0.00035798,8]
[312828191,1706308244229,-323.54,0.000359,3]
[312828192,1706308244238,-323.54,0.000359,3]
[312828193,1706308244248,-323.54,0.000359,3]
[312828194,1706308244257,-323.54,0.000359,3]
[312828195,1706308244266,-323.54,0.000359,3]
[312828196,1706308244276,-323.54,0.000359,3]
[312828197,1706308244286,-323.54,0.000359,3]
[312828198,1706308244295,-323.54,0.000359,3]
[312828199,1706308244304,-323.54,0.000359,3]
[312828200,1706308244314,-323.54,0.000359,3]
[312828201,1706308244324,-323.54,0.000359,3]
[312828202,1706308244333,-323.54,0.000359,3]
[312828203,1706308244343,-323.54,0.000359,3]
[312828204,1706308244352,-323.54,0.000359,3]
[312828205,1706308244362,-323.54,0.000359,3]
[312828206,1706308244372,-323.54,0.000359,3]
[312828207,1706308244381,-323.54,0.000359,3]
[312828208,1706308244391,-323.54,0.000359,3]
[312828209,1706308244400,-323.54,0.000359,3]
[312828210,1706308244410,-323.54,0.000359,3]
[312828211,1706308244419,-804.0,0.00036,2]
[312828212,1706308244429,-580.917998,0.00036,2]
[312828213,1706308244438,-2079.00865319,0.00036082,8]
[312828214,1706308244448,-183.3406794,0.00036096,2]
[312828215,1706308244457,-1796.05,0.00036143,5]
[312828216,1706308244466,-151.0127,0.00036198,10]
[312828217,1706308244476,-1100.92158902,0.000362,2]
[312828218,1706308244485,-155.0,0.0003637,2]
[312828219,1706308244495,-288.89,0.00036415,2]
[312828220,1706308244504,-151.0127,0.00036498,8]
[312828221,1706308244514,-483.7,0.00036613,15]
[312828222,1706308244523,-5286.87,0.00036648,2]
[312828223,1706308244532,-55555.0,0.00036698,3]
[312828224,1706308244541,-151.0127,0.00036798,10]
[312828225,1706308244551,-204.0,0.00036925,9]
[312828226,1706308244560,-471.3,0.0003699,2]
[312828227,1706308244569,-75522.80647845,0.00037,2]
[312828228,1706308244579,-310.4579952,0.00037,4]
[312828229,1706308244588,-316.90316751,0.00037,14]
[312828230,1706308244597,-227.43504101,0.00037,7]
[312828231,1706308244606,-151.0,0.00037,7]
[312828232,1706308244616,-160.312982,0.00037,7]
[312828233,1706308244625,-909.916142,0.00037,7]
[312828234,1706308244634,-909.916142,0.00037,7]
[312828235,1706308244643,-151.0,0.00037,7]
[312828236,1706308244653,-151.0,0.00037,7]
[312828237,1706308244662,-151.0,0.00037,7]
[312828238,1706308244672,-419.211851,0.00037,7]
[312828239,1706308244681,-419.211851,0.00037,7]
[312828240,1706308244690,-150.0,0.00037,2]
[312828241,1706308244702,-675.457961,0.00037,7]
[312828242,1706308244711,-675.457961,0.00037,7]
[312828243,1706308244721,-151.0,0.00037,7]
[312828244,1706308244730,-151.0,0.00037191,7]
[312828245,1706308244740,-151.0127,0.00037198,8]
[312828246,1706308244750,-516.7182504,0.00037205,2]
[312828247,1706308244759,-960.0,0.00037238,2]
[312828248,1706308244769,-181.0,0.00037426,2]
[312828249,1706308244781,-151.0127,0.00037498,10]
[312828250,1706308244792,-4035.96961153,0.0003759,2]
[312828251,1706308244802,-3158.50555833,0.00037699,2]
[312828252,1706308244812,-155.0,0.0003774,2]
[312828253,1706308244821,-151.0127,0.00037798,10]
[312828254,1706308244830,-151.0,0.000378,7]
[312828255,1706308244840,-151.0,0.000378,7]
[312828256,1706308244850,-186.156264,0.000378,7]
[312828257,1706308244860,-1081.82017922,0.000378,2]
[312828258,1706308244870,-224.68656444,0.000378,2]
[312828259,1706308244880,-184.05084569,0.000378,2]
[312828260,1706308244889,-1102.19051739,0.000378,2]
[312828261,1706308244898,-520.1559748,0.000378,2]
[312828262,1706308244908,-471.3,0.0003789,2]
[312828263,1706308244917,-471.3,0.0003789,2]
[312828264,1706308244926,-361.98226453,0.0003789,2]
[312828265,1706308244936,-592.51,0.000379,7]
[312828266,1706308244945,-199.7959044,0.000379,2]
[312828267,1706308244955,-511.31079244,0.000379,2]
[312828268,1706308244965,-151.0,0.000379,7]
[312828269,1706308244974,-909.916142,0.000379,7]
[312828270,1706308244984,-909.916142,0.000379,7]
[312828271,1706308244993,-151.0,0.000379,7]
[312828272,1706308245003,-151.0,0.000379,7]
[312828273,1706308245013,-490580.770808,0.000379,2]
[312828274,1706308245023,-151.0,0.000379,7]
[312828275,1706308245033,-151.0,0.000379,7]
[312828276,1706308245042,-151.0,0.000379,7]
[312828277,1706308245052,-419.211851,0.000379,7]
[312828278,1706308245062,-419.211851,0.000379,7]
[312828279,1706308245071,-675.457961,0.000379,7]
[312828280,1706308245080,-675.457961,0.000379,7]
[312828281,1706308245090,-151.0,0.000379,7]
[312828282,1706308245100,-196232.308323,0.0003799,2]
[312828283,1706308245109,-266.90246,0.0003799,7]
[312828284,1706308245119,-419.211851,0.0003799,7]
[312828285,1706308245128,-419.211851,0.0003799,7]
[312828286,1706308245137,-675.457961,0.0003799,7]
[312828287,1706308245146,-675.457961,0.0003799,7]
[312828288,1706308245156,-151.0,0.0003799,7]
[312828289,1706308245165,-12226.81518579,0.00037997,2]
[312828290,1706308245174,-204455.57322304,0.00038,2]
[312828291,1706308245184,-237798.82504286,0.00038,2]
[312828292,1706308245193,-151.0,0.00038,7]
[312828293,1706308245202,-151.0,0.00038,7]
[312828294,1706308245211,-44332.54667984,0.00038,2]
[312828295,1706308245221,-909.916142,0.00038,7]
[312828296,1706308245230,-909.916142,0.00038,7]
[312828297,1706308245239,-909.916142,0.00038,7]
[312828298,1706308245249,-909.916142,0.00038,7]
[312828299,1706308245258,-151.0,0.00038,7]
[312828300,1706308245268,-151.0,0.00038,7]
[312828301,1706308245277,-203.109284,0.00038,7]
[312828302,1706308245286,-151.0,0.00038,7]
[312828303,1706308245295,-151.0,0.00038,7]
[312828304,1706308245304,-151.0,0.00038,7]
[312828305,1706308245314,-151.0,0.00038,7]
[312828306,1706308245323,-419.211851,0.00038,7]
[312828307,1706308245333,-419.211851,0.00038,7]
[312828308,1706308245343,-419.211851,0.00038,7]
[312828309,1706308245352,-419.211851,0.00038,7]
[312828310,1706308245361,-675.457961,0.00038,7]
[312828311,1706308245371,-675.457961,0.00038,7]
[312828312,1706308245380,-675.457961,0.00038,7]
[312828313,1706308245390,-675.457961,0.00038,7]
[312828314,1706308245399,-151.0,0.00038,7]
[312828315,1706308245408,-151.0,0.00038,7]
[312828316,1706308245418,-2079.00865319,0.00038173,11]
[312828317,1706308245428,-151.0127,0.00038198,10]
[312828318,1706308245437,-150.0,0.00038295,2]
[312828319,1706308245447,-150.27,0.00038356,2]
[312828320,1706308245457,-1000.0,0.000384,2]
[312828321,1706308245466,-151.0127,0.00038498,10]
[312828322,1706308245476,-288.89,0.00038679,2]
[312828323,1706308245485,-1180.2804291,0.00038765,2]
[312828324,1706308245495,-166.99,0.00038772,2]
[312828325,1706308245505,-151.0127,0.00038798,10]
[312828326,1706308245514,-229.967,0.00038857,2]
[312828327,1706308245523,-19743.0,0.00038857,2]
[312828328,1706308245532,-2278.0,0.00038857,2]
[312828329,1706308245542,-2911.0,0.00038857,2]
[312828330,1706308245551,-947.0,0.00038857,2]
[312828331,1706308245561,-1030.0,0.00038857,2]
[312828332,1706308245570,-213.673,0.00038857,2]
[312828333,1706308245580,-1252.0,0.00038857,2]
[312828334,1706308245589,-1233.0,0.00038857,2]
[312828335,1706308245598,-215.0,0.00038857,2]
[312828336,1706308245608,-1934.0,0.00038857,2]
[312828337,1706308245618,-163.99923926,0.0003888,2]
[312828338,1706308245627,-163.99923921,0.0003888,2]
[312828339,1706308245636,-163.99923921,0.0003888,2]
[312828340,1706308245646,-163.99923921,0.0003888,2]
[312828341,1706308245655,-153.64564503,0.00038899,2]
[312828342,1706308245665,-976.1034455,0.00039,4]
[312828343,1706308245675,-197.08775884,0.00039,4]
[312828344,1706308245686,-530.5736084,0.00039,4]
[312828345,1706308245695,-516.7182504,0.00039032,2]
[312828346,1706308245708,-155.0,0.0003911,2]
[312828347,1706308245717,-151.0127,0.00039198,10]
[312828348,1706308245727,-1000.0,0.000392,2]
[312828349,1706308245736,-150.0,0.00039295,2]
[312828350,1706308245746,-935.05298078,0.00039368,9]
[312828351,1706308245755,-163.99923921,0.00039431,2]
[312828352,1706308245765,-151.0127,0.00039498,10]
[312828353,1706308245775,-150.0,0.00039595,7]
[312828354,1706308245784,-150.0,0.0003974,2]
[312828355,1706308245795,-151.0127,0.00039798,10]
[312828356,1706308245804,-800.00736387,0.0004,60]
[312828357,1706308245814,-689.61162471,0.0004,2]
[312828358,1706308245823,-3000.0,0.0004,2]
[312828359,1706308245833,-151.0127,0.00040198,12]
[312828361,1706308245842,-204.0,0.00040222,16]
[312828363,1706308245852,-2079.00865319,0.00040264,14]
[312828365,1706308245861,-150.0,0.00040295,2]
[312828367,1706308245871,-545.99755602,0.00040348,12]
[312828369,1706308245881,-483.7,0.00040349,15]
[312828371,1706308245891,-155.0,0.0004048,2]
[312828372,1706308245900,-151.0127,0.00040498,12]
[312828373,1706308245910,-38334.07570696,0.000405,2]
[312828374,1706308245919,-151.0127,0.00040798,12]
[312828375,1706308245929,-516.7182504,0.00040858,5]
[312828376,1706308245938,-288.89,0.00040943,2]
[312828377,1706308245948,-151.0127,0.00040998,14]
[312828378,1706308245957,-163.0,0.00041,14]
[312828379,1706308245967,-150.54,0.00041,2]
[312828380,1706308245976,-150.54,0.00041,2]
[312828381,1706308245985,-150.54,0.00041,2]
[312828382,1706308245994,-150.54,0.00041,2]
[312828383,1706308246004,-150.54,0.00041,2]
[312828384,1706308246013,-150.54,0.00041,2]
[312828385,1706308246023,-150.54,0.00041,2]
[312828386,1706308246033,-150.54,0.00041,2]
[312828387,1706308246042,-150.54,0.00041,2]
[312828388,1706308246051,-150.54,0.00041,2]
[312828389,1706308246060,-150.54,0.00041,2]
[312828390,1706308246070,-150.54,0.00041,2]
[312828391,1706308246079,-172.0,0.00041,14]
[312828392,1706308246088,-1000.0,0.000411,2]
[312828393,1706308246098,-151.0127,0.00041198,12]
[312828394,1706308246107,-167.77,0.00041238,10]
[312828395,1706308246117,-838.88,0.00041238,10]
[312828396,1706308246126,-1046.9349132,0.00041248,33]
[312828397,1706308246136,-27089.0,0.0004129,2]
[312828398,1706308246145,-17076.0,0.0004129,2]
[312828399,1706308246154,-150.0,0.00041295,60]
[312828400,1706308246164,-361.98226453,0.00041338,2]
[312828401,1706308246173,-180.44634754,0.00041347,3]
[312828402,1706308246182,-150.0,0.00041347,3]
[312828403,1706308246191,-151.0,0.00041348,14]
[312828404,1706308246200,-151.0,0.00041348,14]
[312828405,1706308246210,-151.0,0.00041348,14]
[312828406,1706308246219,-909.916142,0.00041348,14]
[312828407,1706308246228,-909.916142,0.00041348,14]
[312828408,1706308246238,-909.916142,0.00041348,14]
[312828409,1706308246247,-909.916142,0.00041348,14]
[312828410,1706308246256,-909.916142,0.00041348,14]
[312828411,1706308246266,-909.916142,0.00041348,14]
[312828413,1706308246276,-151.0,0.00041348,14]
[312828415,1706308246285,-151.0,0.00041348,14]
[312828417,1706308246294,-151.0,0.00041348,14]
[312828419,1706308246303,-151.0,0.00041348,14]
[312828421,1706308246312,-151.0,0.00041348,14]
[312828435,1706308246421,-151.0,0.00041348,14]
[312828437,1706308246431,-151.0,0.00041348,14]
[312828439,1706308246440,-151.0,0.00041348,14]
[312828441,1706308246449,-151.0,0.00041348,14]
[312828443,1706308246458,-419.211851,0.00041348,14]
[312828445,1706308246467,-419.211851,0.00041348,14]
[312828447,1706308246476,-419.211851,0.00041348,14]
[312828449,1706308246485,-419.211851,0.00041348,14]
[312828451,1706308246494,-419.211851,0.00041348,14]
[312828452,1706308246503,-419.211851,0.00041348,14]
[312828453,1706308246512,-675.457961,0.00041348,14]
[312828454,1706308246521,-675.457961,0.00041348,14]
[312828455,1706308246530,-675.457961,0.00041348,14]
[312828456,1706308246539,-675.457961,0.00041348,14]
[312828457,1706308246548,-675.457961,0.00041348,14]
[312828458,1706308246557,-675.457961,0.00041348,14]
[312828459,1706308246566,-176.25408,0.00041348,14]
[312828460,1706308246575,-311646.16500229,0.00041348,5]
[312828461,1706308246585,-204.66769847,0.00041348,2]
[312828462,1706308246595,-88741.34715376,0.00041348,2]
[312828463,1706308246605,-14318.96731707,0.00041348,2]
[312828464,1706308246614,-6000.0,0.00041348,2]
[312828465,1706308246623,-680.79938859,0.00041348,2]
[312828466,1706308246632,-14010.8308516,0.00041348,2]
[312828467,1706308246641,-341.29476192,0.00041348,2]
[312828468,1706308246650,-200.0,0.00041348,2]
[312828469,1706308246660,-625.63621698,0.00041348,2]
[312828470,1706308246669,-600.06893701,0.00041348,2]
[312828471,1706308246678,-205.75549245,0.00041348,2]
[312828472,1706308246688,-146976.20733606,0.00041348,2]
[312828473,1706308246699,-430.12097611,0.00041348,2]
[312828474,1706308246709,-1022.06814858,0.00041348,2]
[312828475,1706308246717,-4329.65595949,0.00041348,2]
[312828476,1706308246727,-20352.76754133,0.00041348,2]
[312828477,1706308246736,-2500.0,0.00041348,2]
[312828478,1706308246747,-555.06142174,0.00041348,2]
[312828479,1706308246756,-26629.6327608,0.00041348,2]
[312828480,1706308246765,-2279.93803216,0.00041348,2]
[312828481,1706308246776,-230.65298677,0.00041348,2]
[312828482,1706308246785,-1575.29524396,0.00041348,2]
[312828483,1706308246795,-516.49007062,0.00041348,2]
[312828484,1706308246804,-405837.73107046,0.00041348,2]
[312828485,1706308246813,-874.69911149,0.00041348,2]
[312828486,1706308246823,-9135.30570269,0.00041348,2]
[312828487,1706308246832,-26433.51031252,0.00041348,2]
[312828488,1706308246841,-461.60534058,0.00041348,2]
[312828489,1706308246850,-379.53845591,0.00041348,2]
[312828490,1706308246859,-14585.97770079,0.00041348,2]
[312828491,1706308246868,-227.23572269,0.00041348,2]
[312828492,1706308246877,-2041.48821588,0.00041348,2]
[312828493,1706308246886,-387.09481117,0.00041348,2]
[312828494,1706308246895,-524.85057082,0.00041348,2]
[312828495,1706308246904,-9797.14571091,0.00041348,2]
[312828496,1706308246913,-993.37691779,0.00041348,2]
[312828497,1706308246922,-349.13975921,0.00041348,2]
[312828498,1706308246931,-9352.67434105,0.00041348,2]
[312828499,1706308246940,-14129.8735798,0.00041348,2]
[312828500,1706308246949,-1759.96835999,0.00041348,2]
[312828501,1706308246958,-6019.97543796,0.00041348,2]
[312828502,1706308246967,-2281.05681628,0.00041348,2]
[312828503,1706308246975,-237.97878014,0.00041348,120]
[312828504,1706308246985,-692.191963,0.00041348,30]
[312828505,1706308246994,-151.0127,0.00041498,12]
[312828506,1706308247003,-183.93241377,0.00041522,4]
[312828507,1706308247012,-831.0,0.0004179,2]
[312828508,1706308247021,-151.0127,0.00041798,12]
[312828509,1706308247030,-155.0,0.0004185,2]
[312828510,1706308247039,-209.0,0.00041857,2]
[312828511,1706308247049,-19743.0,0.00041857,2]
[312828512,1706308247062,-2278.0,0.00041857,2]
[312828513,1706308247071,-915.355,0.00041857,2]
[312828514,1706308247080,-1252.0,0.00041857,2]
[312828515,1706308247089,-1233.0,0.00041857,2]
[312828516,1706308247099,-215.0,0.00041857,2]
[312828517,1706308247108,-180.44634754,0.00041899,3]
[312828518,1706308247117,-150.0,0.00041899,3]
[312828519,1706308247126,-323.54,0.000419,4]
[312828520,1706308247136,-323.54,0.000419,4]
[312828521,1706308247146,-323.54,0.000419,4]
[312828522,1706308247155,-323.54,0.000419,4]
[312828523,1706308247165,-323.54,0.000419,4]
[312828524,1706308247174,-323.54,0.000419,4]
[312828525,1706308247184,-323.54,0.000419,4]
[312828526,1706308247193,-323.54,0.000419,4]
[312828527,1706308247202,-323.54,0.000419,4]
[312828528,1706308247211,-323.54,0.000419,4]
[312828529,1706308247220,-323.54,0.000419,4]
[312828530,1706308247230,-323.54,0.000419,4]
[312828531,1706308247238,-323.54,0.000419,4]
[312828532,1706308247247,-323.54,0.000419,4]
[312828533,1706308247256,-323.54,0.000419,4]
[312828534,1706308247266,-323.54,0.000419,4]
[312828535,1706308247275,-323.54,0.000419,4]
[312828536,1706308247284,-323.54,0.000419,4]
[312828537,1706308247293,-323.54,0.000419,4]
[312828538,1706308247302,-323.54,0.000419,4]
[312828539,1706308247311,-151.0127,0.00041998,12]
[312828540,1706308247320,-8675.64841787,0.00042,2]
[312828541,1706308247329,-594.54602477,0.00042,4]
[312828542,1706308247339,-1738.8066963,0.00042,2]
[312828543,1706308247348,-592.51,0.00042,7]
[312828544,1706308247357,-1290.66523502,0.0004201,2]
[312828545,1706308247366,-180.44634754,0.00042175,3]
[312828546,1706308247376,-150.0,0.00042175,3]
[312828547,1706308247385,-151.0127,0.00042198,12]
[312828548,1706308247394,-150.0,0.000422,7]
[312828549,1706308247403,-150.0,0.00042295,60]
[312828550,1706308247413,-2079.00865319,0.00042355,16]
[312828551,1706308247421,-180.44634754,0.00042451,3]
[312828552,1706308247430,-150.0,0.00042451,3]
[312828553,1706308247440,-151.0127,0.00042498,12]
[312828554,1706308247450,-516.7182504,0.00042684,5]
[312828555,1706308247459,-1674.0,0.0004269,2]
[312828556,1706308247469,-1058.0,0.0004269,2]
[312828557,1706308247478,-180.44634754,0.00042727,4]
[312828558,1706308247487,-150.0,0.00042727,4]
[312828559,1706308247496,-339.60595476,0.00042778,4]
[312828560,1706308247506,-52487.74374149,0.0004278,2]
[312828561,1706308247515,-151.0,0.0004278,14]
[312828562,1706308247524,-909.916142,0.0004278,14]
[312828563,1706308247533,-909.91615,0.0004278,14]
[312828564,1706308247541,-151.0,0.0004278,14]
[312828565,1706308247551,-151.0,0.0004278,14]
[312828566,1706308247560,-151.0,0.0004278,14]
[312828567,1706308247570,-419.211851,0.0004278,14]
[312828568,1706308247579,-419.211854,0.0004278,14]
[312828569,1706308247588,-151.0127,0.00042798,12]
[312828570,1706308247597,-153.64564503,0.00042899,17]
[312828571,1706308247606,-151.0127,0.00042998,16]
[312828572,1706308247616,-2067.52580588,0.00043,90]
[312828573,1706308247626,-180.44634754,0.00043003,4]
[312828574,1706308247635,-150.0,0.00043003,4]
[312828575,1706308247644,-2507.88385496,0.00043111,60]
[312828576,1706308247654,-151.0127,0.00043198,14]
[312828577,1706308247663,-288.89,0.00043207,2]
[312828578,1706308247672,-155.0,0.0004322,2]
[312828579,1706308247681,-935.05298078,0.00043251,11]
[312828580,1706308247691,-180.44634754,0.00043279,4]
[312828581,1706308247703,-150.0,0.00043279,4]
[312828582,1706308247714,-151.0127,0.00043498,14]
[312828583,1706308247723,-204.0,0.00043518,23]
[312828584,1706308247732,-180.44634754,0.00043555,4]
[312828585,1706308247743,-150.0,0.00043555,4]
[312828586,1706308247752,-163.99923921,0.00043795,5]
[312828587,1706308247761,-151.0127,0.00043798,14]
[312828588,1706308247771,-1000.0,0.000438,2]
[312828589,1706308247782,-180.44634754,0.00043831,4]
[312828590,1706308247791,-150.0,0.00043831,4]
[312828591,1706308247801,-151.0127,0.00043998,16]
[312828592,1706308247810,-700.0,0.00044,14]
[312828593,1706308247819,-483.7,0.00044085,15]
[312828594,1706308247829,-180.44634754,0.00044107,4]
[312828595,1706308247839,-150.0,0.00044107,4]
[312828596,1706308247848,-151.0127,0.00044198,14]
[312828597,1706308247857,-180.44634754,0.00044383,4]
[312828598,1706308247867,-150.0,0.00044383,4]
[312828599,1706308247876,-2079.00865319,0.00044445,19]
[312828600,1706308247885,-151.0127,0.00044498,14]
[312828601,1706308247894,-516.7182504,0.0004451,5]
[312828602,1706308247903,-180.44634754,0.00044659,4]
[312828603,1706308247915,-150.0,0.00044659,4]
[312828604,1706308247925,-1046.93491316,0.00044661,38]
[312828605,1706308247934,-150.27,0.00044749,2]
[312828606,1706308247943,-151.0127,0.00044798,14]
[312828607,1706308247953,-2278.0,0.00044857,2]
[312828608,1706308247963,-1250.0,0.00044857,2]
[312828609,1706308247972,-1233.0,0.00044857,2]
[312828610,1706308247981,-592.51,0.000449,7]
[312828611,1706308247991,-150.0,0.00044935,4]
[312828612,1706308248000,-180.44634754,0.00044935,4]
[312828613,1706308248010,-151.0127,0.00044998,14]
[312828614,1706308248019,-252.81337463,0.00045,2]
[312828615,1706308248028,-3000.0,0.00045,2]
[312828616,1706308248037,-1689.0,0.00045,2]
[312828617,1706308248046,-151.0127,0.00045198,16]
[312828618,1706308248055,-150.0,0.00045211,5]
[312828619,1706308248065,-180.44634754,0.00045211,5]
[312828620,1706308248074,-288.89,0.00045471,2]
[312828621,1706308248084,-150.0,0.00045487,5]
[312828622,1706308248093,-180.44634754,0.00045487,5]
[312828623,1706308248102,-151.0127,0.00045498,16]
[312828624,1706308248111,-358.00273995,0.0004573,7]
[312828625,1706308248120,-150.0,0.00045763,5]
[312828626,1706308248129,-180.44634754,0.00045763,5]
[312828627,1706308248138,-151.0127,0.00045798,16]
[312828628,1706308248147,-151.0127,0.00045998,18]
[312828629,1706308248156,-150.0,0.00046039,6]
[312828630,1706308248165,-180.44634754,0.00046039,6]
[312828631,1706308248174,-151.0127,0.00046198,16]
[312828632,1706308248183,-1081.8201792,0.00046247,2]
[312828633,1706308248192,-224.68656442,0.00046247,2]
[312828634,1706308248201,-1102.19051739,0.00046247,2]
[312828635,1706308248211,-520.1559748,0.00046247,2]
[312828636,1706308248220,-150.0,0.00046315,6]
[312828637,1706308248229,-180.44634754,0.00046315,6]
[312828638,1706308248239,-1973.65874336,0.00046329,30]
[312828639,1706308248249,-1844.24827195,0.00046329,30]
[312828640,1706308248258,-516.7182504,0.00046337,5]
[312828641,1706308248267,-151.0127,0.00046498,16]
[312828642,1706308248276,-2079.00865319,0.00046536,22]
[312828643,1706308248285,-150.0,0.00046591,6]
[312828644,1706308248294,-180.44634754,0.00046591,6]
[312828645,1706308248303,-1000.0,0.000466,2]
[312828646,1706308248312,-151.0127,0.00046798,16]
[312828647,1706308248321,-204.0,0.00046814,31]
[312828648,1706308248332,-150.0,0.00046867,6]
[312828649,1706308248341,-180.44634754,0.00046867,6]
[312828650,1706308248351,-153.64564503,0.000469,32]
[312828651,1706308248453,-151.0127,0.00046998,18]
[312828652,1706308248462,-935.05298078,0.00047134,13]
[312828653,1706308248471,-150.0,0.00047143,7]
[312828654,1706308248481,-180.44634754,0.00047143,7]
[312828655,1706308248490,-151.0127,0.00047198,16]
[312828656,1706308248499,-150.0,0.00047419,7]
[312828657,1706308248508,-180.44634754,0.00047419,7]
[312828658,1706308248518,-151.0127,0.00047498,16]
[312828659,1706308248526,-22407.68569728,0.0004752,5]